[Event "Titled Tuesday Blitz November 01 Early 2022"]
[White "Aizpurua, Patrick Emilio"]
[Black "Jovic, Stanoje"]
[WhiteFideId "6600522"]
[BlackFideId "905020"]
[WhiteElo "2378"]
[BlackElo "2238"]
[Result "1-0"]
[Round "05"]
[TimeControl "180+1"]
[Date "2022.11.02"]
[WhiteClock "0:00:11"]
[BlackClock "0:00:05"]

1. d4 {[%clk 0:03:00]}  Nf6 {[%clk 0:02:59]} 2. c4 {[%clk 0:03:00]}  e6 {[%clk 0:03:00]} 3. Nf3 {[%clk 0:03:01]}  b6 {[%clk 0:02:59]} 4. g3 {[%clk 0:03:01]}  Ba6 {[%clk 0:02:58]} 5. b3 {[%clk 0:02:59]}  Bb4+ {[%clk 0:02:58]} 6. Bd2 {[%clk 0:02:59]}  Be7 {[%clk 0:02:58]} 7. Nc3 {[%clk 0:02:58]}  O-O {[%clk 0:02:54]} 8. Bg2 {[%clk 0:02:59]}  d5 {[%clk 0:02:54]} 9. cxd5 {[%clk 0:02:49]}  exd5 {[%clk 0:02:53]} 10. O-O {[%clk 0:02:49]}  Re8 {[%clk 0:02:53]} 11. Ne5 {[%clk 0:02:49]}  c5 {[%clk 0:02:52]} 12. dxc5 {[%clk 0:02:42]}  bxc5 {[%clk 0:02:42]} 13. Bg5 {[%clk 0:02:26]}  Bb7 {[%clk 0:02:33]} 14. Rc1 {[%clk 0:02:22]}  h6 {[%clk 0:02:21]} 15. Bf4 {[%clk 0:02:07]}  Bf8 {[%clk 0:02:06]} 16. Nd3 {[%clk 0:02:00]}  Nc6 {[%clk 0:01:58]} 17. Na4 {[%clk 0:01:58]}  Nd4 {[%clk 0:01:51]} 18. Be5 {[%clk 0:01:39]}  Ng4 {[%clk 0:01:26]} 19. Bxd4 {[%clk 0:01:13]}  cxd4 {[%clk 0:01:24]} 20. e3 {[%clk 0:01:11]}  Ba6 {[%clk 0:01:17]} 21. exd4 {[%clk 0:01:10]}  Nf6 {[%clk 0:01:10]} 22. Nac5 {[%clk 0:01:06]}  Bxd3 {[%clk 0:01:07]} 23. Qxd3 {[%clk 0:01:02]}  a5 {[%clk 0:01:00]} 24. Rfe1 {[%clk 0:00:48]}  Qb6 {[%clk 0:00:56]} 25. Rxe8 {[%clk 0:00:46]}  Rxe8 {[%clk 0:00:53]} 26. Na4 {[%clk 0:00:45]}  Qb4 {[%clk 0:00:51]} 27. Nc3 {[%clk 0:00:37]}  Rc8 {[%clk 0:00:45]} 28. Rc2 {[%clk 0:00:29]}  g6 {[%clk 0:00:40]} 29. Nxd5 {[%clk 0:00:18]}  Qe1+ {[%clk 0:00:38]} 30. Bf1 {[%clk 0:00:18]}  Rxc2 {[%clk 0:00:16]} 31. Nxf6+ {[%clk 0:00:18]}  Kg7 {[%clk 0:00:16]} 32. Nh5+ {[%clk 0:00:16]}  gxh5 {[%clk 0:00:15]} 33. Qxc2 {[%clk 0:00:16]}  Be7 {[%clk 0:00:14]} 34. Qf5 {[%clk 0:00:15]}  Bf6 {[%clk 0:00:13]} 35. d5 {[%clk 0:00:15]}  Qd2 {[%clk 0:00:11]} 36. Qxh5 {[%clk 0:00:12]}  Qxa2 {[%clk 0:00:09]} 37. Bc4 {[%clk 0:00:11]}  Qa1+ {[%clk 0:00:06]} 38. Kg2 {[%clk 0:00:11]}  a4 {[%clk 0:00:05]} 39. d6 {[%clk 0:00:11]} 1-0


[Site "https://www.chess.com"]

[Event "Titled Tuesday Blitz November 01 Early 2022"]
[White "Amgalantengis, Enkh-Amgalan"]
[Black "Orozbaev, Eldiar"]
[WhiteFideId "4903536"]
[BlackFideId "13802240"]
[WhiteElo "1772"]
[BlackElo "2244"]
[Result "0-1"]
[Round "05"]
[TimeControl "180+1"]
[Date "2022.11.02"]
[WhiteClock "0:00:58"]
[BlackClock "0:00:05"]

1. d4 {[%clk 0:03:00]}  Nf6 {[%clk 0:01:53]} 2. Nf3 {[%clk 0:02:59]}  e6 {[%clk 0:01:53]} 3. Nc3 {[%clk 0:02:59]}  d5 {[%clk 0:01:52]} 4. Bg5 {[%clk 0:02:59]}  c5 {[%clk 0:01:52]} 5. e4 {[%clk 0:02:58]}  Be7 {[%clk 0:01:51]} 6. exd5 {[%clk 0:02:57]}  Nxd5 {[%clk 0:01:49]} 7. Bxe7 {[%clk 0:02:56]}  Qxe7 {[%clk 0:01:50]} 8. Bb5+ {[%clk 0:02:56]}  Bd7 {[%clk 0:01:50]} 9. Bxd7+ {[%clk 0:02:56]}  Nxd7 {[%clk 0:01:51]} 10. O-O {[%clk 0:02:56]}  Nxc3 {[%clk 0:01:51]} 11. bxc3 {[%clk 0:02:56]}  O-O {[%clk 0:01:50]} 12. Rb1 {[%clk 0:02:56]}  b6 {[%clk 0:01:49]} 13. Qe2 {[%clk 0:02:55]}  Rfd8 {[%clk 0:01:50]} 14. d5 {[%clk 0:02:55]}  Nf8 {[%clk 0:01:47]} 15. c4 {[%clk 0:02:54]}  Rd6 {[%clk 0:01:42]} 16. Rfe1 {[%clk 0:02:53]}  Rad8 {[%clk 0:01:40]} 17. Rb3 {[%clk 0:02:50]}  Qf6 {[%clk 0:01:38]} 18. dxe6 {[%clk 0:02:43]}  Nxe6 {[%clk 0:01:39]} 19. Rd3 {[%clk 0:02:42]}  Rxd3 {[%clk 0:01:35]} 20. cxd3 {[%clk 0:02:42]}  g6 {[%clk 0:01:35]} 21. Qe4 {[%clk 0:02:40]}  Qf4 {[%clk 0:01:26]} 22. g3 {[%clk 0:02:24]}  Qxe4 {[%clk 0:01:22]} 23. dxe4 {[%clk 0:02:25]}  Rd3 {[%clk 0:01:22]} 24. Kg2 {[%clk 0:02:26]}  Rc3 {[%clk 0:01:18]} 25. Rd1 {[%clk 0:02:23]}  Rxc4 {[%clk 0:01:15]} 26. Rd7 {[%clk 0:02:20]}  Rxe4 {[%clk 0:01:13]} 27. Rxa7 {[%clk 0:02:19]}  b5 {[%clk 0:01:07]} 28. Rb7 {[%clk 0:02:19]}  b4 {[%clk 0:01:07]} 29. h4 {[%clk 0:02:18]}  h5 {[%clk 0:01:05]} 30. Rb5 {[%clk 0:02:11]}  Re2 {[%clk 0:01:04]} 31. Ng5 {[%clk 0:02:08]}  Nxg5 {[%clk 0:00:58]} 32. hxg5 {[%clk 0:02:09]}  Re5 {[%clk 0:00:57]} 33. f4 {[%clk 0:02:08]}  Re2+ {[%clk 0:00:58]} 34. Kh3 {[%clk 0:02:08]}  Rc2 {[%clk 0:00:54]} 35. g4 {[%clk 0:02:06]}  Rc3+ {[%clk 0:00:53]} 36. Kh4 {[%clk 0:02:06]}  hxg4 {[%clk 0:00:52]} 37. Kxg4 {[%clk 0:02:07]}  Kf8 {[%clk 0:00:52]} 38. Rb7 {[%clk 0:02:03]}  Rc2 {[%clk 0:00:49]} 39. Rc7 {[%clk 0:02:03]}  c4 {[%clk 0:00:47]} 40. f5 {[%clk 0:02:00]}  gxf5+ {[%clk 0:00:47]} 41. Kxf5 {[%clk 0:01:59]}  c3 {[%clk 0:00:47]} 42. Rc4 {[%clk 0:01:55]}  Rb2 {[%clk 0:00:39]} 43. a3 {[%clk 0:01:39]}  bxa3 {[%clk 0:00:35]} 44. Rxc3 {[%clk 0:01:39]}  a2 {[%clk 0:00:36]} 45. Ra3 {[%clk 0:01:40]}  Kg7 {[%clk 0:00:36]} 46. Ra6 {[%clk 0:01:38]}  Rc2 {[%clk 0:00:32]} 47. Kf4 {[%clk 0:01:35]}  Rg2 {[%clk 0:00:30]} 48. Kf5 {[%clk 0:01:35]}  Kf8 {[%clk 0:00:30]} 49. Ra7 {[%clk 0:01:35]}  Ke8 {[%clk 0:00:29]} 50. Kf6 {[%clk 0:01:35]}  Rf2+ {[%clk 0:00:28]} 51. Kg7 {[%clk 0:01:34]}  Kd8 {[%clk 0:00:27]} 52. Kg8 {[%clk 0:01:27]}  Kc8 {[%clk 0:00:23]} 53. Kg7 {[%clk 0:01:27]}  Kb8 {[%clk 0:00:14]} 54. Ra6 {[%clk 0:01:26]}  Kb7 {[%clk 0:00:13]} 55. Ra5 {[%clk 0:01:26]}  Kb6 {[%clk 0:00:14]} 56. Ra3 {[%clk 0:01:26]}  Kc5 {[%clk 0:00:12]} 57. Ra8 {[%clk 0:01:24]}  Kd6 {[%clk 0:00:12]} 58. Ra5 {[%clk 0:01:23]}  Ke6 {[%clk 0:00:11]} 59. Kf8 {[%clk 0:01:17]}  Rg2 {[%clk 0:00:06]} 60. Ra6+ {[%clk 0:01:16]}  Kf5 {[%clk 0:00:06]} 61. Ra5+ {[%clk 0:01:15]}  Kg6 {[%clk 0:00:06]} 62. Kg8 {[%clk 0:01:09]}  Re2 {[%clk 0:00:05]} 63. Kf8 {[%clk 0:01:07]}  f5 {[%clk 0:00:05]} 64. gxf6 {[%clk 0:01:06]}  Kxf6 {[%clk 0:00:06]} 65. Ra8 {[%clk 0:01:03]}  Rb2 {[%clk 0:00:05]} 66. Ra6+ {[%clk 0:01:00]}  Ke5 {[%clk 0:00:05]} 67. Ke7 {[%clk 0:01:00]}  Kd4 {[%clk 0:00:04]} 68. Kd6 {[%clk 0:01:00]}  Kc3 {[%clk 0:00:05]} 69. Kc5 {[%clk 0:01:00]}  Kc2 {[%clk 0:00:05]} 70. Kc4 {[%clk 0:00:59]}  Kb1 {[%clk 0:00:06]} 71. Kc3 {[%clk 0:00:57]}  a1=Q {[%clk 0:00:07]} 72. Rf6 {[%clk 0:00:57]}  Rf2+ {[%clk 0:00:05]} 73. Kb3 {[%clk 0:00:56]}  Rxf6 {[%clk 0:00:05]} 74. Kc4 {[%clk 0:00:56]}  Qe5 {[%clk 0:00:05]} 75. Kd3 {[%clk 0:00:56]}  Rf4 {[%clk 0:00:05]} 76. Kd2 {[%clk 0:00:56]}  Rd4+ {[%clk 0:00:05]} 77. Kc3 {[%clk 0:00:57]}  Qc5+ {[%clk 0:00:06]} 78. Kb3 {[%clk 0:00:57]}  Qc2+ {[%clk 0:00:06]} 79. Ka3 {[%clk 0:00:58]}  Qb2# {[%clk 0:00:05]} 0-1


[Site "https://www.chess.com"]

[Event "Titled Tuesday Blitz November 01 Early 2022"]
[White "Barria Zuniga, Daniel"]
[Black "Martinez, Shawn"]
[WhiteFideId "3400816"]
[BlackFideId "2039770"]
[WhiteElo "2414"]
[BlackElo "2174"]
[Result "0-1"]
[Round "05"]
[TimeControl "180+1"]
[Date "2022.11.02"]
[WhiteClock "0:00:16"]
[BlackClock "0:00:17"]

1. c4 {[%clk 0:03:00]}  e5 {[%clk 0:02:53]} 2. Nc3 {[%clk 0:02:59]}  Nc6 {[%clk 0:02:53]} 3. g3 {[%clk 0:02:58]}  f5 {[%clk 0:02:53]} 4. Bg2 {[%clk 0:02:58]}  Nf6 {[%clk 0:02:52]} 5. Nh3 {[%clk 0:02:56]}  Bb4 {[%clk 0:02:44]} 6. Na4 {[%clk 0:02:56]}  a5 {[%clk 0:02:41]} 7. a3 {[%clk 0:02:55]}  Be7 {[%clk 0:02:39]} 8. O-O {[%clk 0:02:55]}  O-O {[%clk 0:02:39]} 9. d3 {[%clk 0:02:48]}  b6 {[%clk 0:02:35]} 10. Rb1 {[%clk 0:02:42]}  h6 {[%clk 0:02:25]} 11. f4 {[%clk 0:02:28]}  e4 {[%clk 0:02:05]} 12. Nc3 {[%clk 0:02:19]}  exd3 {[%clk 0:02:00]} 13. Qxd3 {[%clk 0:02:13]}  Bc5+ {[%clk 0:01:54]} 14. e3 {[%clk 0:01:59]}  Ng4 {[%clk 0:01:42]} 15. b4 {[%clk 0:01:43]}  axb4 {[%clk 0:01:22]} 16. axb4 {[%clk 0:01:42]}  Nxb4 {[%clk 0:01:21]} 17. Rxb4 {[%clk 0:01:35]}  Bxb4 {[%clk 0:01:15]} 18. Bxa8 {[%clk 0:01:31]}  c6 {[%clk 0:01:16]} 19. Nf2 {[%clk 0:01:14]}  Nf6 {[%clk 0:01:03]} 20. Na2 {[%clk 0:01:01]}  Bc5 {[%clk 0:00:59]} 21. Ba3 {[%clk 0:01:01]}  Ba6 {[%clk 0:00:51]} 22. Bxc5 {[%clk 0:00:48]}  bxc5 {[%clk 0:00:50]} 23. Qxf5 {[%clk 0:00:46]}  Qxa8 {[%clk 0:00:45]} 24. Qxc5 {[%clk 0:00:44]}  d5 {[%clk 0:00:43]} 25. Nb4 {[%clk 0:00:31]}  Bxc4 {[%clk 0:00:41]} 26. Rd1 {[%clk 0:00:29]}  Rc8 {[%clk 0:00:36]} 27. e4 {[%clk 0:00:27]}  Qa4 {[%clk 0:00:28]} 28. e5 {[%clk 0:00:23]}  Ne4 {[%clk 0:00:25]} 29. Nxe4 {[%clk 0:00:17]}  Qxd1+ {[%clk 0:00:24]} 30. Kf2 {[%clk 0:00:16]}  Qe2+ {[%clk 0:00:17]} 31. Kg1 {[%clk 0:00:16]}  Qf1# {[%clk 0:00:17]} 0-1


[Site "https://www.chess.com"]

[Event "Titled Tuesday Blitz November 01 Early 2022"]
[White "Begunov, Konstantin"]
[Black "Zaichenko, Daria"]
[WhiteFideId "4118510"]
[BlackFideId "4197453"]
[WhiteElo "2225"]
[BlackElo "2039"]
[Result "0-1"]
[Round "05"]
[TimeControl "180+1"]
[Date "2022.11.02"]
[WhiteClock "0:00:08"]
[BlackClock "0:00:37"]

1. d4 {[%clk 0:02:57]}  d5 {[%clk 0:02:58]} 2. c4 {[%clk 0:02:57]}  e6 {[%clk 0:02:57]} 3. Nc3 {[%clk 0:02:57]}  Be7 {[%clk 0:02:57]} 4. Nf3 {[%clk 0:02:57]}  Nf6 {[%clk 0:02:56]} 5. cxd5 {[%clk 0:02:57]}  exd5 {[%clk 0:02:56]} 6. Bg5 {[%clk 0:02:57]}  c6 {[%clk 0:02:49]} 7. Qc2 {[%clk 0:02:57]}  O-O {[%clk 0:02:44]} 8. e3 {[%clk 0:02:57]}  Ne4 {[%clk 0:02:41]} 9. Bxe7 {[%clk 0:02:50]}  Qxe7 {[%clk 0:02:41]} 10. Bd3 {[%clk 0:02:50]}  f5 {[%clk 0:02:39]} 11. Ne5 {[%clk 0:02:34]}  Nd7 {[%clk 0:02:38]} 12. f4 {[%clk 0:02:34]}  Nxe5 {[%clk 0:02:07]} 13. dxe5 {[%clk 0:02:33]}  Qh4+ {[%clk 0:02:05]} 14. g3 {[%clk 0:02:33]}  Qh5 {[%clk 0:02:04]} 15. Be2 {[%clk 0:01:36]}  Qf7 {[%clk 0:01:51]} 16. O-O-O {[%clk 0:01:12]}  Nf2 {[%clk 0:01:46]} 17. Bh5 {[%clk 0:01:11]}  Qxh5 {[%clk 0:01:43]} 18. Qxf2 {[%clk 0:01:11]}  Be6 {[%clk 0:01:42]} 19. Kb1 {[%clk 0:01:08]}  Qf7 {[%clk 0:01:34]} 20. h3 {[%clk 0:01:06]}  c5 {[%clk 0:01:25]} 21. Ne2 {[%clk 0:00:54]}  d4 {[%clk 0:01:22]} 22. exd4 {[%clk 0:00:41]}  Bxa2+ {[%clk 0:01:21]} 23. Ka1 {[%clk 0:00:42]}  Bd5 {[%clk 0:01:17]} 24. Rhe1 {[%clk 0:00:31]}  a5 {[%clk 0:01:15]} 25. dxc5 {[%clk 0:00:26]}  a4 {[%clk 0:01:07]} 26. Nc3 {[%clk 0:00:22]}  Bb3 {[%clk 0:01:06]} 27. Rd6 {[%clk 0:00:19]}  a3 {[%clk 0:01:02]} 28. Qd4 {[%clk 0:00:19]}  Qc7 {[%clk 0:00:44]} 29. e6 {[%clk 0:00:17]}  Qa5 {[%clk 0:00:40]} 30. Re2 {[%clk 0:00:10]}  axb2+ {[%clk 0:00:39]} 31. Kxb2 {[%clk 0:00:11]}  Qa3+ {[%clk 0:00:37]} 32. Kb1 {[%clk 0:00:08]}  Qa1# {[%clk 0:00:37]} 0-1


[Site "https://www.chess.com"]

[Event "Titled Tuesday Blitz November 01 Early 2022"]
[White "Brueckner, Thomas"]
[Black "Bilan, Danila"]
[WhiteFideId "4600452"]
[BlackFideId "24161918"]
[WhiteElo "2332"]
[BlackElo "2203"]
[Result "0-1"]
[Round "05"]
[TimeControl "180+1"]
[Date "2022.11.02"]
[WhiteClock "0:00:12"]
[BlackClock "0:00:58"]

1. e4 {[%clk 0:03:00]}  c6 {[%clk 0:02:59]} 2. d4 {[%clk 0:03:00]}  d5 {[%clk 0:02:59]} 3. Nd2 {[%clk 0:03:00]}  dxe4 {[%clk 0:02:59]} 4. Nxe4 {[%clk 0:03:01]}  Bf5 {[%clk 0:02:56]} 5. Ng3 {[%clk 0:03:01]}  Bg6 {[%clk 0:02:56]} 6. h4 {[%clk 0:03:01]}  h6 {[%clk 0:02:56]} 7. Nf3 {[%clk 0:02:57]}  Nd7 {[%clk 0:02:56]} 8. h5 {[%clk 0:02:57]}  Bh7 {[%clk 0:02:57]} 9. Bd3 {[%clk 0:02:57]}  Bxd3 {[%clk 0:02:58]} 10. Qxd3 {[%clk 0:02:58]}  Qc7 {[%clk 0:02:58]} 11. Bd2 {[%clk 0:02:56]}  e6 {[%clk 0:02:59]} 12. O-O-O {[%clk 0:02:54]}  Bd6 {[%clk 0:03:00]} 13. Ne4 {[%clk 0:02:47]}  Ngf6 {[%clk 0:03:00]} 14. Nxd6+ {[%clk 0:02:45]}  Qxd6 {[%clk 0:03:01]} 15. g3 {[%clk 0:02:45]}  Qd5 {[%clk 0:02:57]} 16. c4 {[%clk 0:02:44]}  Qe4 {[%clk 0:02:57]} 17. Qxe4 {[%clk 0:02:42]}  Nxe4 {[%clk 0:02:57]} 18. Be3 {[%clk 0:02:43]}  b5 {[%clk 0:02:49]} 19. b3 {[%clk 0:02:20]}  O-O {[%clk 0:02:30]} 20. Kc2 {[%clk 0:02:12]}  Nb6 {[%clk 0:02:21]} 21. Ne5 {[%clk 0:02:07]}  Rac8 {[%clk 0:02:15]} 22. Kd3 {[%clk 0:01:44]}  Nf6 {[%clk 0:02:05]} 23. Rc1 {[%clk 0:01:38]}  Rfd8 {[%clk 0:01:57]} 24. Ke2 {[%clk 0:01:38]}  Ne4 {[%clk 0:01:41]} 25. Rc2 {[%clk 0:01:26]}  bxc4 {[%clk 0:01:35]} 26. bxc4 {[%clk 0:01:24]}  Nd7 {[%clk 0:01:36]} 27. Nxd7 {[%clk 0:01:02]}  Rxd7 {[%clk 0:01:37]} 28. Rd1 {[%clk 0:00:33]}  Rb7 {[%clk 0:01:27]} 29. g4 {[%clk 0:00:22]}  Rcb8 {[%clk 0:01:21]} 30. f3 {[%clk 0:00:21]}  Rb2 {[%clk 0:01:06]} 31. Rc1 {[%clk 0:00:16]}  Nc3+ {[%clk 0:01:03]} 32. Kd3 {[%clk 0:00:16]}  Nxa2 {[%clk 0:00:59]} 33. Ra1 {[%clk 0:00:12]}  Nb4+ {[%clk 0:00:58]} 0-1


[Site "https://www.chess.com"]

[Event "Titled Tuesday Blitz November 01 Early 2022"]
[White "Cramling Bellon, Anna"]
[Black "Ljukin, Sergei"]
[WhiteFideId "32009232"]
[BlackFideId "14102200"]
[WhiteElo "1972"]
[BlackElo "2312"]
[Result "0-1"]
[Round "05"]
[TimeControl "180+1"]
[Date "2022.11.02"]
[WhiteClock "0:00:01"]
[BlackClock "0:00:23"]

1. d4 {[%clk 0:02:50]}  d5 {[%clk 0:02:59]} 2. c4 {[%clk 0:02:44]}  c6 {[%clk 0:02:58]} 3. Nc3 {[%clk 0:02:37]}  Nf6 {[%clk 0:02:58]} 4. Nf3 {[%clk 0:02:36]}  dxc4 {[%clk 0:02:58]} 5. a4 {[%clk 0:02:33]}  Bf5 {[%clk 0:02:57]} 6. Nh4 {[%clk 0:02:23]}  Bg4 {[%clk 0:02:56]} 7. h3 {[%clk 0:02:20]}  Bc8 {[%clk 0:02:50]} 8. e3 {[%clk 0:02:16]}  e5 {[%clk 0:02:48]} 9. Bxc4 {[%clk 0:02:15]}  exd4 {[%clk 0:02:47]} 10. exd4 {[%clk 0:02:15]}  Be7 {[%clk 0:02:47]} 11. O-O {[%clk 0:02:14]}  O-O {[%clk 0:02:48]} 12. Nf3 {[%clk 0:02:08]}  Na6 {[%clk 0:02:48]} 13. Bxa6 {[%clk 0:01:59]}  bxa6 {[%clk 0:02:48]} 14. Ne5 {[%clk 0:01:59]}  Bb7 {[%clk 0:02:32]} 15. Bf4 {[%clk 0:01:42]}  c5 {[%clk 0:02:32]} 16. dxc5 {[%clk 0:01:27]}  Bxc5 {[%clk 0:02:32]} 17. Qb3 {[%clk 0:01:12]}  Qb6 {[%clk 0:02:22]} 18. Qa2 {[%clk 0:01:00]}  Rad8 {[%clk 0:02:14]} 19. a5 {[%clk 0:00:59]}  Qb4 {[%clk 0:02:07]} 20. Qa4 {[%clk 0:00:53]}  Nd5 {[%clk 0:01:25]} 21. Nxd5 {[%clk 0:00:49]}  Rxd5 {[%clk 0:01:15]} 22. Qxb4 {[%clk 0:00:44]}  Bxb4 {[%clk 0:01:14]} 23. Rfd1 {[%clk 0:00:45]}  Rfd8 {[%clk 0:01:13]} 24. Rxd5 {[%clk 0:00:45]}  Rxd5 {[%clk 0:01:11]} 25. Rc1 {[%clk 0:00:45]}  f6 {[%clk 0:01:06]} 26. Nf3 {[%clk 0:00:39]}  Bxa5 {[%clk 0:01:01]} 27. b4 {[%clk 0:00:12]}  Bxb4 {[%clk 0:00:52]} 28. Rb1 {[%clk 0:00:12]}  a5 {[%clk 0:00:51]} 29. Rc1 {[%clk 0:00:04]}  Rd7 {[%clk 0:00:44]} 30. Be3 {[%clk 0:00:02]}  Bxf3 {[%clk 0:00:42]} 31. gxf3 {[%clk 0:00:02]}  a4 {[%clk 0:00:29]} 32. Rc4 {[%clk 0:00:02]}  a3 {[%clk 0:00:23]} 33. Rxb4 {[%clk 0:00:02]}  a2 {[%clk 0:00:24]} 34. Ra4 {[%clk 0:00:01]}  Rd1+ {[%clk 0:00:23]} 35. Kg2 {[%clk 0:00:01]}  a1=Q {[%clk 0:00:24]} 36. Rxa1 {[%clk 0:00:01]}  Rxa1 {[%clk 0:00:24]} 37. Bd4 {[%clk 0:00:01]}  Ra4 {[%clk 0:00:22]} 38. Bc5 {[%clk 0:00:02]}  a5 {[%clk 0:00:22]} 39. Kg3 {[%clk 0:00:02]}  Rc4 {[%clk 0:00:22]} 40. Be3 {[%clk 0:00:01]}  a4 {[%clk 0:00:22]} 41. f4 {[%clk 0:00:01]}  a3 {[%clk 0:00:23]} 0-1


[Site "https://www.chess.com"]

[Event "Titled Tuesday Blitz November 01 Early 2022"]
[White "Deac, Bogdan-Daniel"]
[Black "Beerdsen, Thomas"]
[WhiteFideId "1226380"]
[BlackFideId "1030108"]
[WhiteElo "2648"]
[BlackElo "2567"]
[Result "1-0"]
[Round "05"]
[TimeControl "180+1"]
[Date "2022.11.01"]
[WhiteClock "0:00:05"]
[BlackClock "0:00:04"]

1. Nf3 {[%clk 0:03:00]}  Nf6 {[%clk 0:02:56]} 2. c4 {[%clk 0:03:00]}  e6 {[%clk 0:02:56]} 3. b3 {[%clk 0:03:00]}  a5 {[%clk 0:02:55]} 4. Nc3 {[%clk 0:02:59]}  d5 {[%clk 0:02:53]} 5. e3 {[%clk 0:02:59]}  Be7 {[%clk 0:02:52]} 6. Bb2 {[%clk 0:02:59]}  O-O {[%clk 0:02:52]} 7. d4 {[%clk 0:02:59]}  Ne4 {[%clk 0:02:42]} 8. Qc2 {[%clk 0:02:54]}  Nxc3 {[%clk 0:02:38]} 9. Bxc3 {[%clk 0:02:53]}  Nd7 {[%clk 0:02:37]} 10. Bd3 {[%clk 0:02:45]}  Nf6 {[%clk 0:02:36]} 11. O-O {[%clk 0:02:43]}  a4 {[%clk 0:02:28]} 12. bxa4 {[%clk 0:02:39]}  dxc4 {[%clk 0:02:08]} 13. Bxc4 {[%clk 0:02:38]}  Nd5 {[%clk 0:02:06]} 14. Bd2 {[%clk 0:02:26]}  Bd7 {[%clk 0:01:52]} 15. a5 {[%clk 0:02:20]}  Nb4 {[%clk 0:01:45]} 16. Qb1 {[%clk 0:01:21]}  Nc6 {[%clk 0:01:40]} 17. a6 {[%clk 0:01:21]}  bxa6 {[%clk 0:01:38]} 18. Qe4 {[%clk 0:01:21]}  Bf6 {[%clk 0:01:25]} 19. Rfc1 {[%clk 0:01:17]}  Ne7 {[%clk 0:01:21]} 20. Bd3 {[%clk 0:01:16]}  g6 {[%clk 0:01:18]} 21. Qf4 {[%clk 0:00:41]}  Nd5 {[%clk 0:01:18]} 22. Qg3 {[%clk 0:00:41]}  a5 {[%clk 0:00:56]} 23. a3 {[%clk 0:00:33]}  Rc8 {[%clk 0:00:27]} 24. e4 {[%clk 0:00:28]}  Nb6 {[%clk 0:00:21]} 25. Bxa5 {[%clk 0:00:27]}  Bg7 {[%clk 0:00:18]} 26. Rab1 {[%clk 0:00:24]}  Ra8 {[%clk 0:00:17]} 27. Bb4 {[%clk 0:00:23]}  Re8 {[%clk 0:00:16]} 28. Qxc7 {[%clk 0:00:21]}  Ba4 {[%clk 0:00:15]} 29. Qxd8 {[%clk 0:00:15]}  Rexd8 {[%clk 0:00:15]} 30. Be7 {[%clk 0:00:16]}  Rd7 {[%clk 0:00:13]} 31. Bc5 {[%clk 0:00:15]}  Nc8 {[%clk 0:00:12]} 32. e5 {[%clk 0:00:13]}  Bc6 {[%clk 0:00:11]} 33. Ng5 {[%clk 0:00:07]}  Bd5 {[%clk 0:00:08]} 34. Ne4 {[%clk 0:00:06]}  Ne7 {[%clk 0:00:08]} 35. Nd6 {[%clk 0:00:03]}  Nc6 {[%clk 0:00:07]} 36. Bb5 {[%clk 0:00:04]}  Rdd8 {[%clk 0:00:07]} 37. Bb6 {[%clk 0:00:02]}  Nxd4 {[%clk 0:00:02]} 38. Bxd4 {[%clk 0:00:02]}  Rxa3 {[%clk 0:00:02]} 39. Bb6 {[%clk 0:00:02]}  Rb8 {[%clk 0:00:02]} 40. Bc5 {[%clk 0:00:02]}  Ra5 {[%clk 0:00:02]} 41. Bd4 {[%clk 0:00:02]}  h5 {[%clk 0:00:02]} 42. Bf1 {[%clk 0:00:02]}  Rxb1 {[%clk 0:00:02]} 43. Rxb1 {[%clk 0:00:02]}  Ra4 {[%clk 0:00:03]} 44. Rb8+ {[%clk 0:00:02]}  Kh7 {[%clk 0:00:03]} 45. Bc3 {[%clk 0:00:03]}  Ra3 {[%clk 0:00:04]} 46. Bb2 {[%clk 0:00:03]}  Ra2 {[%clk 0:00:04]} 47. Nxf7 {[%clk 0:00:04]}  g5 {[%clk 0:00:03]} 48. Nxg5+ {[%clk 0:00:04]}  Kg6 {[%clk 0:00:04]} 49. h4 {[%clk 0:00:05]}  Kf5 {[%clk 0:00:04]} 50. Bd3+ {[%clk 0:00:05]}  Kg4 {[%clk 0:00:04]} 51. Rb4+ {[%clk 0:00:05]} 1-0


[Site "https://www.chess.com"]

[Event "Titled Tuesday Blitz November 01 Early 2022"]
[White "Demin, Vladimir"]
[Black "Harriott, Tyrell"]
[WhiteFideId "4167457"]
[BlackFideId "2086484"]
[WhiteElo "2564"]
[BlackElo "2107"]
[Result "0-1"]
[Round "05"]
[TimeControl "180+1"]
[Date "2022.11.02"]
[WhiteClock "0:00:01"]
[BlackClock "0:00:19"]

1. d4 {[%clk 0:03:00]}  e6 {[%clk 0:03:00]} 2. e4 {[%clk 0:03:00]}  d5 {[%clk 0:03:00]} 3. Bd3 {[%clk 0:03:01]}  f5 {[%clk 0:03:00]} 4. exf5 {[%clk 0:02:58]}  exf5 {[%clk 0:03:01]} 5. Nf3 {[%clk 0:02:58]}  Nf6 {[%clk 0:03:01]} 6. Ne5 {[%clk 0:02:57]}  Bd6 {[%clk 0:03:01]} 7. O-O {[%clk 0:02:56]}  O-O {[%clk 0:03:01]} 8. c4 {[%clk 0:02:55]}  c5 {[%clk 0:02:56]} 9. Nd2 {[%clk 0:02:38]}  cxd4 {[%clk 0:02:55]} 10. Ndf3 {[%clk 0:02:39]}  Nc6 {[%clk 0:02:54]} 11. cxd5 {[%clk 0:02:38]}  Nxe5 {[%clk 0:02:54]} 12. Nxe5 {[%clk 0:02:37]}  Bxe5 {[%clk 0:02:55]} 13. Re1 {[%clk 0:02:36]}  Bd6 {[%clk 0:02:43]} 14. Bg5 {[%clk 0:02:35]}  Qb6 {[%clk 0:02:39]} 15. Qf3 {[%clk 0:02:25]}  Ne4 {[%clk 0:02:34]} 16. Bh4 {[%clk 0:01:50]}  Qxb2 {[%clk 0:02:28]} 17. Rab1 {[%clk 0:01:46]}  Qa3 {[%clk 0:02:03]} 18. Rbd1 {[%clk 0:01:17]}  Bd7 {[%clk 0:01:57]} 19. g4 {[%clk 0:01:11]}  Nc3 {[%clk 0:01:51]} 20. gxf5 {[%clk 0:01:09]}  Nxd1 {[%clk 0:01:46]} 21. f6 {[%clk 0:01:10]}  Nb2 {[%clk 0:01:34]} 22. Bxh7+ {[%clk 0:00:30]}  Kxh7 {[%clk 0:01:35]} 23. Qh5+ {[%clk 0:00:30]}  Kg8 {[%clk 0:01:34]} 24. fxg7 {[%clk 0:00:31]}  Bxh2+ {[%clk 0:00:48]} 25. Kxh2 {[%clk 0:00:24]}  Qh3+ {[%clk 0:00:47]} 26. Kg1 {[%clk 0:00:25]}  Qg4+ {[%clk 0:00:43]} 27. Qxg4 {[%clk 0:00:24]}  Bxg4 {[%clk 0:00:42]} 28. gxf8=Q+ {[%clk 0:00:25]}  Kxf8 {[%clk 0:00:42]} 29. Re4 {[%clk 0:00:16]}  d3 {[%clk 0:00:33]} 30. Rf4+ {[%clk 0:00:16]}  Ke8 {[%clk 0:00:33]} 31. Rxg4 {[%clk 0:00:13]}  d2 {[%clk 0:00:33]} 32. Rg8+ {[%clk 0:00:05]}  Kf7 {[%clk 0:00:31]} 33. Rxa8 {[%clk 0:00:05]}  d1=Q+ {[%clk 0:00:31]} 34. Kh2 {[%clk 0:00:06]}  Qg4 {[%clk 0:00:29]} 35. Bg3 {[%clk 0:00:05]}  Nd3 {[%clk 0:00:28]} 36. d6 {[%clk 0:00:04]}  Ne1 {[%clk 0:00:27]} 37. Rh8 {[%clk 0:00:01]}  Qf3 {[%clk 0:00:20]} 38. Kh3 {[%clk 0:00:01]}  Qh1+ {[%clk 0:00:19]} 39. Bh2 {[%clk 0:00:01]}  Qg2+ {[%clk 0:00:18]} 40. Kh4 {[%clk 0:00:01]}  Qxh2+ {[%clk 0:00:18]} 41. Kg5 {[%clk 0:00:01]}  Qxh8 {[%clk 0:00:19]} 0-1


[Site "https://www.chess.com"]